[Event "*** Qualifier 2: Titled Tuesday 3|2 Blitz"]
[Site "Chess.com"]
[Date "2017.04.11"]
[Round "4"]
[White "Wolverine_master"]
[Black "aa175"]
[Result "0-1"]
[WhiteElo "1978"]
[BlackElo "1869"]
[TimeControl "180+2"]
[EndTime "13:50:19 PDT"]
[Termination "aa175 won by checkmate"]

1. e4 {[%clk 0:03:02]} 1... e5 {[%clk 0:03:00.2]} 2. Nf3 {[%clk 0:03:02.7]} 2...
Nc6 {[%clk 0:03:01.2]} 3. d4 {[%clk 0:03:03.7]} 3... exd4 {[%clk 0:03:01.6]} 4.
Bc4 {[%clk 0:03:04.6]} 4... Bb4+ {[%clk 0:03:00.3]} 5. c3 {[%clk 0:03:05.1]}
5... dxc3 {[%clk 0:03:01.3]} 6. bxc3 {[%clk 0:03:06.6]} 6... Bc5 {[%clk
0:03:00.8]} 7. Ng5 {[%clk 0:02:40.1]} 7... Ne5 {[%clk 0:02:11.1]} 8. Bxf7+
{[%clk 0:02:35.9]} 8... Nxf7 {[%clk 0:02:10.4]} 9. Nxf7 {[%clk 0:02:37]} 9...
Bxf2+ {[%clk 0:02:11.2]} 10. Kxf2 {[%clk 0:02:28.3]} 10... Qf6+ {[%clk
0:02:11.9]} 11. Kg3 {[%clk 0:01:50.6]} 11... Qg6+ {[%clk 0:01:59.2]} 12. Ng5
{[%clk 0:01:49.3]} 12... h6 {[%clk 0:01:59.7]} 13. Rf1 {[%clk 0:01:13.4]} 13...
Nf6 {[%clk 0:01:44.2]} 14. e5 {[%clk 0:01:01.2]} 14... Ne4+ {[%clk 0:01:38.2]}
15. Kf3 {[%clk 0:00:45.9]} 15... O-O+ {[%clk 0:01:35.8]} 16. Ke2 {[%clk
0:00:38.1]} 16... Qa6+ {[%clk 0:01:10.8]} 17. Ke3 {[%clk 0:00:11.5]} 17... Qxf1
{[%clk 0:01:00.5]} 18. Qd5+ {[%clk 0:00:10.9]} 18... Kh8 {[%clk 0:01:00.9]} 19.
Nxe4 {[%clk 0:00:05]} 19... Qxc1+ {[%clk 0:00:53.4]} 20. Ned2 {[%clk 0:00:04.2]}
20... Qe1+ {[%clk 0:00:44.9]} 21. Kd3 {[%clk 0:00:04.9]} 21... d6 {[%clk
0:00:41]} 22. exd6 {[%clk 0:00:04.7]} 22... Bf5+ {[%clk 0:00:41.4]} 23. Kd4
{[%clk 0:00:03.2]} 23... Qf2+ {[%clk 0:00:36.7]} 24. Kc4 {[%clk 0:00:02.7]}
24... b5+ {[%clk 0:00:31.9]} 25. Kb3 {[%clk 0:00:03.1]} 25... Rae8 {[%clk
0:00:21.2]} 26. Kb4 {[%clk 0:00:02.2]} 26... c5+ {[%clk 0:00:19.5]} 27. Qxc5
{[%clk 0:00:02.7]} 27... a5+ {[%clk 0:00:19.7]} 28. Kxb5 {[%clk 0:00:03.6]}
28... Rb8+ {[%clk 0:00:19.4]} 29. Kc6 {[%clk 0:00:04.8]} 29... Rbc8+ {[%clk
0:00:19.5]} 30. Kb5 {[%clk 0:00:05.6]} 30... Qxc5+ {[%clk 0:00:21.1]} 31. Ka4
{[%clk 0:00:05.5]} 31... Bc2+ {[%clk 0:00:21.1]} 32. Nb3 {[%clk 0:00:07.4]}
32... Bxb3+ {[%clk 0:00:21.6]} 33. axb3 {[%clk 0:00:09.3]} 33... Qxd6 {[%clk
0:00:22.4]} 34. Na3 {[%clk 0:00:10.6]} 34... Rxc3 {[%clk 0:00:22.1]} 35. Nb5
{[%clk 0:00:11.8]} 35... Qb4# {[%clk 0:00:23]} 0-1

[Event "*** Qualifier 2: Titled Tuesday 3|2 Blitz"]
[Site "Chess.com"]
[Date "2017.04.11"]
[Round "4"]
[White "abubakrtagelsir"]
[Black "stepanosinovsky"]
[Result "0-1"]
[WhiteElo "2139"]
[BlackElo "2200"]
[TimeControl "180+2"]
[EndTime "13:50:29 PDT"]
[Termination "stepanosinovsky won on time"]

1. e4 {[%clk 0:02:56.3]} 1... e5 {[%clk 0:02:59.7]} 2. Nf3 {[%clk 0:02:56.8]}
2... Nc6 {[%clk 0:03:01.6]} 3. d4 {[%clk 0:02:57.8]} 3... d6 {[%clk 0:03:02.1]}
4. dxe5 {[%clk 0:02:58.1]} 4... Nxe5 {[%clk 0:03:01.8]} 5. Nc3 {[%clk
0:02:54.1]} 5... Bg4 {[%clk 0:02:55]} 6. Bf4 {[%clk 0:02:54.2]} 6... c6 {[%clk
0:02:43.6]} 7. Bxe5 {[%clk 0:02:50.3]} 7... Bxf3 {[%clk 0:02:37.9]} 8. Qxf3
{[%clk 0:02:38.1]} 8... dxe5 {[%clk 0:02:38.5]} 9. Bc4 {[%clk 0:02:26]} 9... Nf6
{[%clk 0:02:37.7]} 10. O-O {[%clk 0:02:14.2]} 10... Qb6 {[%clk 0:02:33.9]} 11.
Bb3 {[%clk 0:02:08.5]} 11... Qc7 {[%clk 0:02:16.2]} 12. Ne2 {[%clk 0:02:06.7]}
12... Bc5 {[%clk 0:02:13.9]} 13. Ng3 {[%clk 0:02:05.2]} 13... O-O-O {[%clk
0:02:04]} 14. a4 {[%clk 0:01:49.9]} 14... Kb8 {[%clk 0:02:02.4]} 15. a5 {[%clk
0:01:48.8]} 15... h5 {[%clk 0:01:58.8]} 16. Nf5 {[%clk 0:01:42.9]} 16... g6
{[%clk 0:01:34.1]} 17. Ne3 {[%clk 0:01:38.2]} 17... Ng4 {[%clk 0:01:33.9]} 18.
Nxg4 {[%clk 0:01:20.2]} 18... hxg4 {[%clk 0:01:33.3]} 19. Qxg4 {[%clk
0:01:20.5]} 19... Rh5 {[%clk 0:01:21.1]} 20. Rad1 {[%clk 0:01:11.4]} 20... Rdh8
{[%clk 0:01:19.9]} 21. h3 {[%clk 0:01:06.8]} 21... Rh4 {[%clk 0:00:42]} 22. Qd7
{[%clk 0:00:14.6]} 22... Qxa5 {[%clk 0:00:42]} 23. Qxf7 {[%clk 0:00:05.6]} 23...
Rf8 {[%clk 0:00:33.4]} 24. Qg7 {[%clk 0:00:02]} 24... Rxe4 {[%clk 0:00:29.8]}
0-1

[Event "*** Qualifier 2: Titled Tuesday 3|2 Blitz"]
[Site "Chess.com"]
[Date "2017.04.11"]
[Round "4"]
[White "joppie2"]
[Black "sergiochess83"]
[Result "0-1"]
[WhiteElo "2541"]
[BlackElo "2598"]
[TimeControl "180+2"]
[EndTime "13:50:31 PDT"]
[Termination "sergiochess83 won by resignation"]

1. e4 {[%clk 0:03:02]} 1... e5 {[%clk 0:02:59.8]} 2. Nf3 {[%clk 0:03:02.3]} 2...
Nc6 {[%clk 0:03:01]} 3. d4 {[%clk 0:03:01.8]} 3... exd4 {[%clk 0:03:00.3]} 4.
Nxd4 {[%clk 0:03:03.7]} 4... Bb4+ {[%clk 0:02:56.4]} 5. Nc3 {[%clk 0:03:03.2]}
5... Nge7 {[%clk 0:02:48.7]} 6. Be3 {[%clk 0:02:58.7]} 6... O-O {[%clk
0:02:47.6]} 7. Bd3 {[%clk 0:02:52.8]} 7... Nxd4 {[%clk 0:02:40.8]} 8. Bxd4
{[%clk 0:02:53.6]} 8... c5 {[%clk 0:02:41.9]} 9. Be3 {[%clk 0:02:51.6]} 9... d5
{[%clk 0:02:42.9]} 10. a3 {[%clk 0:02:22.4]} 10... d4 {[%clk 0:02:41.9]} 11.
axb4 {[%clk 0:02:22.2]} 11... dxe3 {[%clk 0:02:37.3]} 12. bxc5 {[%clk
0:02:21.9]} 12... exf2+ {[%clk 0:02:37.8]} 13. Kxf2 {[%clk 0:02:20.6]} 13...
Qd4+ {[%clk 0:02:37.3]} 14. Ke1 {[%clk 0:02:11]} 14... Qxc5 {[%clk 0:02:37.1]}
15. Qd2 {[%clk 0:02:09.7]} 15... Be6 {[%clk 0:02:36]} 16. Kd1 {[%clk 0:02:04.3]}
16... Rfd8 {[%clk 0:02:31.8]} 17. Kc1 {[%clk 0:02:05.6]} 17... Nc6 {[%clk
0:02:31.2]} 18. Re1 {[%clk 0:02:04.9]} 18... h6 {[%clk 0:01:45.7]} 19. Qe3
{[%clk 0:02:03.1]} 19... Qe5 {[%clk 0:01:44.3]} 20. g3 {[%clk 0:02:02.1]} 20...
Rac8 {[%clk 0:01:39]} 21. Qf4 {[%clk 0:01:58.1]} 21... Qc5 {[%clk 0:01:37.6]}
22. Kb1 {[%clk 0:01:37.9]} 22... Ne5 {[%clk 0:01:33]} 23. Qe3 {[%clk 0:01:33.5]}
23... Qb4 {[%clk 0:01:23.8]} 24. Ra4 {[%clk 0:01:23.5]} 24... Qd6 {[%clk
0:01:03.5]} 25. Rxa7 {[%clk 0:01:19.7]} 25... Bc4 {[%clk 0:01:02.6]} 26. Nd5
{[%clk 0:01:17.2]} 26... Nxd3 {[%clk 0:00:55.6]} 27. cxd3 {[%clk 0:01:15.6]}
27... Bxd5 {[%clk 0:00:56.7]} 28. exd5 {[%clk 0:01:17.2]} 28... Qxd5 {[%clk
0:00:58.3]} 29. Ra3 {[%clk 0:01:18.3]} 29... Rc6 {[%clk 0:00:56.3]} 30. Qe4
{[%clk 0:01:08.9]} 30... Qb5 {[%clk 0:00:46.6]} 31. Qe5 {[%clk 0:01:10.3]} 31...
Rc5 {[%clk 0:00:42.9]} 32. Qe3 {[%clk 0:01:10.7]} 32... Rcd5 {[%clk 0:00:43.6]}
33. Rd1 {[%clk 0:01:07.7]} 33... Qb4 {[%clk 0:00:39.2]} 34. Qd2 {[%clk
0:01:02.7]} 34... Qg4 {[%clk 0:00:39.3]} 35. Qc2 {[%clk 0:01:01.4]} 35... b5
{[%clk 0:00:39.9]} 36. Rb3 {[%clk 0:00:59]} 36... b4 {[%clk 0:00:39.3]} 37. Rc1
{[%clk 0:01:00]} 37... Rd4 {[%clk 0:00:36]} 38. Qd2 {[%clk 0:00:56.1]} 38... Qf5
{[%clk 0:00:30.4]} 39. Rd1 {[%clk 0:00:56]} 39... Qb5 {[%clk 0:00:24.2]} 40. Qc2
{[%clk 0:00:50.8]} 40... Qa4 {[%clk 0:00:21]} 41. Rc3 {[%clk 0:00:51.6]} 41...
bxc3 {[%clk 0:00:21.3]} 42. Qxa4 {[%clk 0:00:48.8]} 42... Rxa4 {[%clk
0:00:22.2]} 43. bxc3 {[%clk 0:00:50.7]} 43... Rb8+ {[%clk 0:00:23.1]} 0-1

[Event "*** Qualifier 2: Titled Tuesday 3|2 Blitz"]
[Site "Chess.com"]
[Date "2017.04.11"]
[Round "4"]
[White "GMMarcinDziuba"]
[Black "platy3"]
[Result "0-1"]
[WhiteElo "2533"]
[BlackElo "2646"]
[TimeControl "180+2"]
[EndTime "13:50:40 PDT"]
[Termination "platy3 won by resignation"]

1. d4 {[%clk 0:03:02]} 1... Nf6 {[%clk 0:03:00.7]} 2. c4 {[%clk 0:03:03.1]} 2...
e6 {[%clk 0:03:00.4]} 3. Nf3 {[%clk 0:03:04.7]} 3... d5 {[%clk 0:03:00.5]} 4. g3
{[%clk 0:03:03.7]} 4... dxc4 {[%clk 0:02:58.2]} 5. Bg2 {[%clk 0:03:04.1]} 5...
Bb4+ {[%clk 0:02:58.5]} 6. Bd2 {[%clk 0:03:03.2]} 6... a5 {[%clk 0:02:59.8]} 7.
Qc2 {[%clk 0:03:04.3]} 7... Bxd2+ {[%clk 0:02:59.3]} 8. Qxd2 {[%clk 0:02:59.9]}
8... c6 {[%clk 0:02:59.8]} 9. a4 {[%clk 0:02:58.7]} 9... b5 {[%clk 0:03:00.9]}
10. axb5 {[%clk 0:02:55.4]} 10... cxb5 {[%clk 0:03:02.8]} 11. Qg5 {[%clk
0:02:56]} 11... O-O {[%clk 0:03:03.4]} 12. Qxb5 {[%clk 0:02:56.6]} 12... Ba6
{[%clk 0:03:02.3]} 13. Qxa5 {[%clk 0:02:28.9]} 13... Bb7 {[%clk 0:02:59.9]} 14.
Qxd8 {[%clk 0:02:29.4]} 14... Rxa1 {[%clk 0:02:42.6]} 15. Qxf8+ {[%clk
0:02:29.7]} 15... Kxf8 {[%clk 0:02:43.3]} 16. O-O {[%clk 0:02:29.6]} 16... Ra2
{[%clk 0:02:40.8]} 17. Rc1 {[%clk 0:02:24.9]} 17... Bd5 {[%clk 0:02:13.9]} 18.
Nfd2 {[%clk 0:02:17.8]} 18... Nc6 {[%clk 0:01:54.5]} 19. e3 {[%clk 0:02:00.2]}
19... Rxb2 {[%clk 0:01:45.6]} 20. Nxc4 {[%clk 0:01:55.8]} 20... Nxd4 {[%clk
0:01:37.2]} 21. exd4 {[%clk 0:01:43.6]} 21... Bxc4 {[%clk 0:01:35.9]} 22. Rxc4
{[%clk 0:01:24.5]} 22... Rxb1+ {[%clk 0:01:35.7]} 23. Bf1 {[%clk 0:01:26.4]}
23... Ne4 {[%clk 0:01:24.1]} 24. Kg2 {[%clk 0:01:27.5]} 24... Rb2 {[%clk
0:01:21.6]} 25. Rc8+ {[%clk 0:01:18.8]} 25... Ke7 {[%clk 0:01:21.1]} 26. Rc7+
{[%clk 0:01:20.3]} 26... Kf6 {[%clk 0:01:19]} 27. Bd3 {[%clk 0:01:19.2]} 27...
Nxf2 {[%clk 0:01:15.1]} 28. Bxh7 {[%clk 0:01:18.4]} 28... Ng4+ {[%clk
0:00:49.9]} 29. Kg1 {[%clk 0:01:19.7]} 29... g6 {[%clk 0:00:46]} 30. h4 {[%clk
0:00:45.7]} 30... Rb1+ {[%clk 0:00:38.6]} 31. Kg2 {[%clk 0:00:45.2]} 31... Ne3+
{[%clk 0:00:40.5]} 32. Kf3 {[%clk 0:00:43.6]} 32... Nd5 {[%clk 0:00:42.4]} 33.
Ra7 {[%clk 0:00:44.4]} 33... Rb3+ {[%clk 0:00:40.7]} 34. Kg2 {[%clk 0:00:41.8]}
34... Kg7 {[%clk 0:00:26.7]} 35. h5 {[%clk 0:00:41.5]} 35... Kxh7 {[%clk
0:00:27.9]} 36. Rxf7+ {[%clk 0:00:42.3]} 36... Kh6 {[%clk 0:00:29.3]} 37. hxg6
{[%clk 0:00:42.2]} 37... Kxg6 {[%clk 0:00:31.2]} 38. Rf8 {[%clk 0:00:22.4]}
38... Rd3 {[%clk 0:00:29.6]} 39. Rg8+ {[%clk 0:00:21.2]} 39... Kf7 {[%clk
0:00:29.5]} 40. Rg4 {[%clk 0:00:21.9]} 40... Ne3+ {[%clk 0:00:30.5]} 0-1

[Event "*** Qualifier 2: Titled Tuesday 3|2 Blitz"]
[Site "Chess.com"]
[Date "2017.04.11"]
[Round "4"]
[White "amaidel"]
[Black "MartinMatthiesen"]
[Result "1-0"]
[WhiteElo "2453"]
[BlackElo "2249"]
[TimeControl "180+2"]
[EndTime "13:50:42 PDT"]
[Termination "amaidel won by resignation"]

1. e4 {[%clk 0:03:02]} 1... e5 {[%clk 0:03:00]} 2. Nf3 {[%clk 0:03:02.7]} 2...
Nc6 {[%clk 0:03:00.8]} 3. Nc3 {[%clk 0:03:03.9]} 3... Nf6 {[%clk 0:03:01.1]} 4.
g3 {[%clk 0:03:05.2]} 4... d5 {[%clk 0:03:00.7]} 5. exd5 {[%clk 0:03:05.8]} 5...
Nxd5 {[%clk 0:03:02.6]} 6. Bg2 {[%clk 0:03:07.4]} 6... Nxc3 {[%clk 0:03:03.4]}
7. bxc3 {[%clk 0:03:08.7]} 7... Bd6 {[%clk 0:03:03.8]} 8. O-O {[%clk 0:03:09.5]}
8... O-O {[%clk 0:03:04.8]} 9. Re1 {[%clk 0:03:09.7]} 9... Bg4 {[%clk
0:03:00.5]} 10. Rb1 {[%clk 0:03:10.1]} 10... Rb8 {[%clk 0:03:01]} 11. d3 {[%clk
0:03:09.4]} 11... Re8 {[%clk 0:03:01.1]} 12. h3 {[%clk 0:03:08.9]} 12... Bh5
{[%clk 0:03:01.5]} 13. g4 {[%clk 0:03:04.6]} 13... Bg6 {[%clk 0:03:01.9]} 14.
Ng5 {[%clk 0:03:02]} 14... Qd7 {[%clk 0:02:55.6]} 15. Qf3 {[%clk 0:02:46.6]}
15... h6 {[%clk 0:02:37.1]} 16. Ne4 {[%clk 0:02:46.5]} 16... f5 {[%clk
0:02:35.7]} 17. gxf5 {[%clk 0:02:41.1]} 17... Bxf5 {[%clk 0:02:36.1]} 18. Bxh6
{[%clk 0:02:30.9]} 18... Rf8 {[%clk 0:01:46.4]} 19. Qg3 {[%clk 0:02:23.5]} 19...
Rbe8 {[%clk 0:01:22.4]} 20. Nxd6 {[%clk 0:02:12.1]} 20... cxd6 {[%clk
0:01:21.3]} 21. Rxb7 {[%clk 0:02:10.9]} 21... Qxb7 {[%clk 0:01:18.7]} 22. Bxc6
{[%clk 0:02:12.5]} 22... Qf7 {[%clk 0:01:14.8]} 23. Bxe8 {[%clk 0:02:08.1]}
23... Rxe8 {[%clk 0:01:16.7]} 24. c4 {[%clk 0:02:02.5]} 24... Re6 {[%clk
0:01:16.6]} 25. Bg5 {[%clk 0:02:03.6]} 25... e4 {[%clk 0:01:12.3]} 26. d4 {[%clk
0:01:53.9]} 26... Re8 {[%clk 0:00:58.5]} 27. c5 {[%clk 0:01:24]} 27... dxc5
{[%clk 0:00:55]} 28. dxc5 {[%clk 0:01:25.9]} 28... Rc8 {[%clk 0:00:38.7]} 29.
Rd1 {[%clk 0:01:07.7]} 29... Qh5 {[%clk 0:00:26.7]} 30. Rd5 {[%clk 0:01:02]}
30... Qxh3 {[%clk 0:00:24.9]} 31. Qxh3 {[%clk 0:00:55.9]} 31... Bxh3 {[%clk
0:00:25.9]} 32. Be3 {[%clk 0:00:56.1]} 32... Bg4 {[%clk 0:00:25.3]} 33. Kh2
{[%clk 0:00:56]} 33... Bf3 {[%clk 0:00:25.3]} 34. Kg3 {[%clk 0:00:55.6]} 34...
Rc7 {[%clk 0:00:26.7]} 35. Rd6 {[%clk 0:00:53.5]} 35... Kf7 {[%clk 0:00:27]} 36.
c6 {[%clk 0:00:53.1]} 36... Be2 {[%clk 0:00:21.7]} 37. a4 {[%clk 0:00:48.9]}
37... Ke7 {[%clk 0:00:18.3]} 38. Rg6 {[%clk 0:00:48.5]} 38... Kf7 {[%clk
0:00:18.7]} 39. Rd6 {[%clk 0:00:49.3]} 39... Ke7 {[%clk 0:00:19.5]} 40. Bc5
{[%clk 0:00:49.5]} 40... Ke8 {[%clk 0:00:20]} 41. Re6+ {[%clk 0:00:45]} 41...
Kd8 {[%clk 0:00:18.8]} 42. Rxe4 {[%clk 0:00:45.9]} 42... Rxc6 {[%clk 0:00:20]}
43. Be7+ {[%clk 0:00:46.3]} 1-0

[Event "*** Qualifier 2: Titled Tuesday 3|2 Blitz"]
[Site "Chess.com"]
[Date "2017.04.11"]
[Round "4"]
[White "Sebastian"]
[Black "GMHess"]
[Result "0-1"]
[WhiteElo "2693"]
[BlackElo "2627"]
[TimeControl "180+2"]
[EndTime "13:50:56 PDT"]
[Termination "GMHess won by resignation"]

1. e4 {[%clk 0:03:02]} 1... e5 {[%clk 0:03:00.8]} 2. Nf3 {[%clk 0:03:02.6]} 2...
Nc6 {[%clk 0:03:01.7]} 3. Bb5 {[%clk 0:03:04.3]} 3... a6 {[%clk 0:02:49.2]} 4.
Ba4 {[%clk 0:03:04.6]} 4... Nf6 {[%clk 0:02:50.2]} 5. O-O {[%clk 0:03:06.3]}
5... Nxe4 {[%clk 0:02:48.3]} 6. d4 {[%clk 0:03:06.3]} 6... b5 {[%clk 0:02:43.1]}
7. Bb3 {[%clk 0:03:07.8]} 7... d5 {[%clk 0:02:44.6]} 8. dxe5 {[%clk 0:03:09.1]}
8... Be6 {[%clk 0:02:46.1]} 9. c3 {[%clk 0:03:09.6]} 9... Be7 {[%clk 0:02:44.2]}
10. Re1 {[%clk 0:03:06.2]} 10... O-O {[%clk 0:02:45]} 11. Nd4 {[%clk 0:03:03.6]}
11... Nxd4 {[%clk 0:01:49.4]} 12. cxd4 {[%clk 0:03:04.1]} 12... Bb4 {[%clk
0:01:49.8]} 13. Re2 {[%clk 0:02:40.3]} 13... Qh4 {[%clk 0:01:45.4]} 14. a3
{[%clk 0:01:38]} 14... Ba5 {[%clk 0:01:43.6]} 15. Be3 {[%clk 0:01:31.3]} 15...
Rfd8 {[%clk 0:01:27.5]} 16. f3 {[%clk 0:00:51.2]} 16... Ng5 {[%clk 0:01:27]} 17.
Nd2 {[%clk 0:00:51.7]} 17... c5 {[%clk 0:00:21.9]} 18. Nf1 {[%clk 0:00:48.2]}
18... cxd4 {[%clk 0:00:18.7]} 19. Bxd4 {[%clk 0:00:49.3]} 19... Bc8 {[%clk
0:00:09]} 20. Rc1 {[%clk 0:00:39.7]} 20... Ne6 {[%clk 0:00:09.6]} 21. Bf2 {[%clk
0:00:40.7]} 21... Qe7 {[%clk 0:00:11.2]} 22. Ng3 {[%clk 0:00:09.6]} 22... Nf4
{[%clk 0:00:11.7]} 23. Re3 {[%clk 0:00:10.8]} 23... Bb6 {[%clk 0:00:11.6]} 24.
Re1 {[%clk 0:00:10]} 24... Bxf2+ {[%clk 0:00:12.1]} 25. Kxf2 {[%clk 0:00:11.6]}
25... Be6 {[%clk 0:00:12.3]} 26. Qd4 {[%clk 0:00:09.7]} 26... Qg5 {[%clk
0:00:13.1]} 27. Kg1 {[%clk 0:00:06.7]} 27... h5 {[%clk 0:00:13.3]} 28. Rc2
{[%clk 0:00:05.3]} 28... h4 {[%clk 0:00:13.8]} 29. Nf1 {[%clk 0:00:05.3]} 29...
Rac8 {[%clk 0:00:12.8]} 30. Rd2 {[%clk 0:00:06.6]} 30... Bh3 {[%clk 0:00:10.2]}
31. Ne3 {[%clk 0:00:07.5]} 31... Ne6 {[%clk 0:00:08.6]} 32. Qb6 {[%clk
0:00:06.2]} 32... d4 {[%clk 0:00:09.6]} 33. Nf1 {[%clk 0:00:07.5]} 33... Nf4
{[%clk 0:00:08]} 34. g3 {[%clk 0:00:07.2]} 34... Bxf1 {[%clk 0:00:08.2]} 35.
Kxf1 {[%clk 0:00:08.1]} 35... hxg3 {[%clk 0:00:09.6]} 36. e6 {[%clk 0:00:09]}
36... g2+ {[%clk 0:00:09.6]} 37. Kf2 {[%clk 0:00:06.6]} 37... Nh3+ {[%clk
0:00:10.6]} 38. Ke2 {[%clk 0:00:07.9]} 38... Qe3+ {[%clk 0:00:10.5]} 39. Kd1
{[%clk 0:00:09.2]} 39... Qxe1+ {[%clk 0:00:11.5]} 40. Kxe1 {[%clk 0:00:10.4]}
40... g1=Q+ {[%clk 0:00:13.1]} 0-1

[Event "*** Qualifier 2: Titled Tuesday 3|2 Blitz"]
[Site "Chess.com"]
[Date "2017.04.11"]
[Round "4"]
[White "Rating-Schmating"]
[Black "GMMelik"]
[Result "0-1"]
[WhiteElo "2254"]
[BlackElo "2499"]
[TimeControl "180+2"]
[EndTime "13:51:21 PDT"]
[Termination "GMMelik won by resignation"]

1. e4 {[%clk 0:03:01.9]} 1... e5 {[%clk 0:02:56.2]} 2. Nf3 {[%clk 0:03:02.6]}
2... Nc6 {[%clk 0:02:56.9]} 3. d4 {[%clk 0:03:03.5]} 3... exd4 {[%clk
0:02:56.9]} 4. Nxd4 {[%clk 0:03:04.6]} 4... Nf6 {[%clk 0:02:58.2]} 5. Nxc6
{[%clk 0:03:03.5]} 5... bxc6 {[%clk 0:02:58.8]} 6. e5 {[%clk 0:03:04.7]} 6...
Qe7 {[%clk 0:02:59.6]} 7. Qe2 {[%clk 0:03:06]} 7... Nd5 {[%clk 0:03:00.7]} 8. c4
{[%clk 0:03:07.3]} 8... Ba6 {[%clk 0:03:02]} 9. Nd2 {[%clk 0:03:08.4]} 9... Nb4
{[%clk 0:02:59.6]} 10. Nf3 {[%clk 0:03:07.6]} 10... c5 {[%clk 0:03:01]} 11. Bf4
{[%clk 0:02:56.8]} 11... d5 {[%clk 0:02:46.6]} 12. a3 {[%clk 0:02:38.7]} 12...
Bxc4 {[%clk 0:02:40.5]} 13. Qd2 {[%clk 0:02:38.8]} 13... Bxf1 {[%clk 0:02:38.6]}
14. Kxf1 {[%clk 0:02:35.6]} 14... Nc6 {[%clk 0:02:29.3]} 15. Qxd5 {[%clk
0:02:35.5]} 15... Qe6 {[%clk 0:02:30.8]} 16. Qxe6+ {[%clk 0:02:28.2]} 16... fxe6
{[%clk 0:02:28.4]} 17. Ke2 {[%clk 0:02:27.1]} 17... Rb8 {[%clk 0:02:11.2]} 18.
Rab1 {[%clk 0:02:27.8]} 18... Be7 {[%clk 0:02:09.4]} 19. Rhc1 {[%clk 0:02:27.4]}
19... Rf8 {[%clk 0:01:21.3]} 20. Be3 {[%clk 0:02:27.4]} 20... Rf5 {[%clk
0:01:22.2]} 21. Bxc5 {[%clk 0:02:22.5]} 21... Nxe5 {[%clk 0:01:16.2]} 22. Bxe7
{[%clk 0:02:20.6]} 22... Nxf3 {[%clk 0:01:16]} 23. gxf3 {[%clk 0:02:18.8]} 23...
Kxe7 {[%clk 0:01:08.7]} 24. Rxc7+ {[%clk 0:02:19.5]} 24... Kf6 {[%clk
0:01:10.1]} 25. Rxa7 {[%clk 0:02:17.9]} 25... Rb3 {[%clk 0:01:11]} 26. a4 {[%clk
0:02:12.1]} 26... Rbxf3 {[%clk 0:01:11.2]} 27. b4 {[%clk 0:01:57.3]} 27... Rxf2+
{[%clk 0:01:12.2]} 28. Ke3 {[%clk 0:01:58.7]} 28... Rxh2 {[%clk 0:00:58.8]} 29.
b5 {[%clk 0:01:54.3]} 29... Rh3+ {[%clk 0:00:59.8]} 30. Ke2 {[%clk 0:01:54.4]}
30... Rh2+ {[%clk 0:00:37]} 31. Ke3 {[%clk 0:01:51.6]} 31... Rh3+ {[%clk
0:00:37.9]} 32. Kd4 {[%clk 0:01:48]} 32... Rh4+ {[%clk 0:00:35.8]} 33. Kd3
{[%clk 0:01:35.3]} 33... Rf3+ {[%clk 0:00:35.2]} 34. Ke2 {[%clk 0:01:35.9]}
34... Ra3 {[%clk 0:00:35.8]} 35. Rf1+ {[%clk 0:01:30.9]} 35... Ke5 {[%clk
0:00:36.2]} 36. Kf2 {[%clk 0:01:17]} 36... Raxa4 {[%clk 0:00:32]} 37. Rxg7
{[%clk 0:01:08.1]} 37... Raf4+ {[%clk 0:00:29.7]} 38. Kg2 {[%clk 0:01:05.9]}
38... Rhg4+ {[%clk 0:00:26.1]} 39. Rxg4 {[%clk 0:01:05.8]} 39... Rxg4+ {[%clk
0:00:28]} 40. Kh3 {[%clk 0:01:04.7]} 40... Rb4 {[%clk 0:00:29.9]} 41. Re1+
{[%clk 0:00:59.4]} 41... Kd6 {[%clk 0:00:29.1]} 42. Rd1+ {[%clk 0:00:59.2]}
42... Ke7 {[%clk 0:00:30.2]} 43. Rd3 {[%clk 0:00:57.1]} 43... Rxb5 {[%clk
0:00:31.2]} 44. Kg4 {[%clk 0:00:58.7]} 44... Rf5 {[%clk 0:00:32.1]} 45. Ra3
{[%clk 0:00:58.9]} 45... h5+ {[%clk 0:00:33]} 46. Kh4 {[%clk 0:00:59.8]} 46...
Kf6 {[%clk 0:00:34.2]} 47. Ra6 {[%clk 0:00:59.2]} 47... Rf1 {[%clk 0:00:27.5]}
48. Kxh5 {[%clk 0:00:57.8]} 48... Rg1 {[%clk 0:00:28.7]} 49. Ra8 {[%clk
0:00:54.3]} 49... Kf5 {[%clk 0:00:29.2]} 50. Rf8+ {[%clk 0:00:54.9]} 50... Ke4
{[%clk 0:00:30.5]} 51. Kh4 {[%clk 0:00:56.6]} 51... e5 {[%clk 0:00:31.4]} 52.
Kh3 {[%clk 0:00:58.3]} 52... Ke3 {[%clk 0:00:32.4]} 53. Kh2 {[%clk 0:00:59.3]}
53... Rg7 {[%clk 0:00:33.1]} 54. Rf6 {[%clk 0:00:59]} 54... e4 {[%clk 0:00:34]}
55. Re6 {[%clk 0:01:00.1]} 55... Kf3 {[%clk 0:00:35]} 56. Rf6+ {[%clk
0:01:01.7]} 56... Ke2 {[%clk 0:00:36.1]} 57. Rf8 {[%clk 0:01:03.3]} 57... e3
{[%clk 0:00:37.3]} 58. Rd8 {[%clk 0:01:01.2]} 58... Ke1 {[%clk 0:00:37.1]} 59.
Kh1 {[%clk 0:01:01.6]} 59... e2 {[%clk 0:00:38.1]} 60. Kh2 {[%clk 0:01:02]}
60... Rg5 {[%clk 0:00:34.8]} 61. Kh3 {[%clk 0:01:00.6]} 61... Kf2 {[%clk
0:00:35.7]} 62. Rf8+ {[%clk 0:00:58.9]} 62... Ke3 {[%clk 0:00:36.6]} 63. Re8+
{[%clk 0:00:58.4]} 63... Kf3 {[%clk 0:00:37.8]} 64. Kh4 {[%clk 0:00:58.6]} 64...
Rg4+ {[%clk 0:00:38.4]} 65. Kh3 {[%clk 0:00:59.2]} 65... Re4 {[%clk 0:00:40]}
66. Rf8+ {[%clk 0:01:00]} 66... Ke3 {[%clk 0:00:41.2]} 0-1